[Event "DSAM Bad Wildungen 2024"]
[Site "Bad Wildungen"]
[Date "2024.08.02"]
[Round "4.33"]
[White "Doeding, Alexander"]
[Black "Kellner, Rene"]
[Result "1/2-1/2"]
[Annotator "NA"]
[ECO "B13"]
[WhiteElo "1588"]
[BlackElo "1734"]
[PlyCount "68"]
[EventDate "2024.07.31"]
[EventCountry "GER"]
[SourceTitle "playchess.com"]
[Source "ChessBase"]
[SourceQuality "1"]
[TimeControl "40/5400+30:900+30"]

1. e4 {[%emt 0:00:06]} c6 {[%emt 0:00:07]} 2. d4 {[%emt 0:00:04]} d5 {[%emt 0:00:05]} 3. exd5 {[%emt 0:00:06]} cxd5 {[%emt 0:00:09]} 4. Nf3 {[%emt 0:00:09]} Nc6 {[%emt 0:00:27]} 5. Bb5 {[%emt 0:00:12]} Bd7 {[%emt 0:01:07]} 6. Bxc6 {[%emt 0:01:18]} bxc6 {[%emt 0:01:01]} 7. Ne5 {[%emt 0:00:35]} Nf6 {[%emt 0:00:49]} 8. c3 {[%emt 0:00:54]} e6 {[%emt 0:00:18]} 9. O-O {[%emt 0:02:39]} Be7 {[%emt 0:02:08]} 10. Bf4 {[%emt 0:03:39]} Qb6 {[%emt 0:02:52]} 11. Qc2 {[%emt 0:01:38]} O-O {[%emt 0:02:08]} 12. Nd2 {[%emt 0:01:18]} c5 {[%emt 0:03:45]} 13. Bg5 {[%emt 0:13:41]} Rfd8 {[%emt 0:06:53]} 14. Nxd7 {[%emt 0:06:13]} Rxd7 {[%emt 0:00:11]} 15. Nf3 {[%emt 0:00:39]} cxd4 {[%emt 0:02:31]} 16. Nxd4 {[%emt 0:04:35]} Rc8 {[%emt 0:03:15]} 17. Qa4 {[%emt 0:02:02]} Rb7 {[%emt 0:00:40]} 18. Nb3 {[%emt 0:02:54]} Ne4 {[%emt 0:04:20]} 19. Bf4 {[%emt 0:03:47]} Bd6 {[%emt 0:10:27]} 20. Be3 {[%emt 0:05:32]} Qc7 {[%emt 0:01:20]} 21. g3 {[%emt 0:01:55]} Qe7 {[%emt 0:08:43]} 22. Qa6 {[%emt 0:04:26]} Nc5 {[%emt 0:05:11]} 23. Bxc5 {[%emt 0:02:15]} Bxc5 {[%emt 0:01:33]} 24. Qd3 {[%emt 0:00:09]} Bb6 {[%emt 0:00:28]} 25. Rfe1 {[%emt 0:02:11]} Qf6 {[%emt 0:01:23]} 26. Re2 {[%emt 0:01:04]} Rbc7 {[%emt 0:03:01]} 27. Rae1 {[%emt 0:01:21]} Rc4 {[%emt 0:02:51]} 28. Nd2 {[%emt 0:05:09]} Rg4 {[%emt 0:04:13]} 29. Nf3 {[%emt 0:02:28]} h5 {[%emt 0:02:51]} 30. Ne5 {[%emt 0:02:17]} Rg5 {[%emt 0:03:11]} 31. Nd7 {[%emt 0:02:37]} Qh6 {[%emt 0:01:18]} 32. Nxb6 {[%emt 0:05:24]} axb6 {[%emt 0:00:12]} 33. Qa6 {[%emt 0:23:43]} Rf8 {[%emt 0:27:32]} 34. Qxb6 {[%emt 0:00:30]} Rb8 {[%emt 0:00:30]} 1/2-1/2

[Event "DSAM Bad Wildungen 2024"]
[Site "Bad Wildungen"]
[Date "2024.08.02"]
[Round "4.34"]
[White "Dezius, Armin"]
[Black "Hoefle, Jan"]
[Result "0-1"]
[Annotator "NA"]
[ECO "E61"]
[WhiteElo "1798"]
[BlackElo "1765"]
[PlyCount "64"]
[EventDate "2024.07.31"]
[EventCountry "GER"]
[SourceTitle "playchess.com"]
[Source "ChessBase"]
[SourceQuality "1"]
[TimeControl "40/5400+30:900+30"]

1. d4 {[%emt 0:00:04]} Nf6 {[%emt 0:00:07]} 2. c4 {[%emt 0:00:11]} g6 {[%emt 0:00:08]} 3. Nc3 {[%emt 0:00:12]} Bg7 {[%emt 0:00:23]} 4. Nf3 {[%emt 0:00:23]} O-O {[%emt 0:00:20]} 5. Bg5 {[%emt 0:00:45]} h6 {[%emt 0:00:16]} 6. Bxf6 {[%emt 0:00:19]} Bxf6 {[%emt 0:01:46]} 7. e3 {[%emt 0:00:18]} d6 {[%emt 0:01:19]} 8. Be2 {[%emt 0:01:38]} c6 {[%emt 0:01:20]} 9. O-O {[%emt 0:00:57]} Bg7 {[%emt 0:05:29]} 10. a3 {[%emt 0:05:20]} Nd7 {[%emt 0:06:26]} 11. Rc1 {[%emt 0:03:14]} e5 {[%emt 0:01:13]} 12. dxe5 {[%emt 0:10:45]} dxe5 {[%emt 0:02:30]} 13. e4 {[%emt 0:01:36]} Qe7 {[%emt 0:00:51]} 14. b4 {[%emt 0:04:40]} Rd8 {[%emt 0:01:24]} 15. Qc2 {[%emt 0:00:51]} Nf8 {[%emt 0:01:02]} 16. Rfd1 {[%emt 0:02:55]} Bg4 {[%emt 0:00:29]} 17. Rxd8 {[%emt 0:03:13]} Rxd8 {[%emt 0:00:07]} 18. Rd1 {[%emt 0:00:29]} Ne6 {[%emt 0:07:42]} 19. Rxd8+ {[%emt 0:06:01]} Qxd8 {[%emt 0:00:31]} 20. Qd1 {[%emt 0:02:12]} Qe7 {[%emt 0:01:13]} 21. Nd2 {[%emt 0:04:25]} Bxe2 {[%emt 0:01:09]} 22. Nxe2 {[%emt 0:00:23]} a5 {[%emt 0:00:53]} 23. c5 {[%emt 0:02:27]} axb4 {[%emt 0:02:37]} 24. axb4 {[%emt 0:00:12]} Qd8 {[%emt 0:00:14]} 25. Qc2 {[%emt 0:03:07]} b6 {[%emt 0:01:52]} 26. cxb6 {[%emt 0:03:19]} Qxb6 {[%emt 0:00:06]} 27. Qa4 {[%emt 0:02:44]} Qd8 {[%emt 0:03:50]} 28. Qc2 {[%emt 0:02:59]} Bf8 {[%emt 0:01:52]} 29. Nf3 {[%emt 0:01:47]} Bxb4 {[%emt 0:01:38]} 30. Nxe5 {[%emt 0:00:27]} Nd4 {[%emt 0:00:40]} 31. Nxd4 {[%emt 0:01:59]} Qxd4 {[%emt 0:01:26]} 32. Nxc6 {[%emt 0:00:18]} Qa1+ {[%emt 0:00:15]} 0-1

[Event "DSAM Bad Wildungen 2024"]
[Site "Bad Wildungen"]
[Date "2024.08.02"]
[Round "4.35"]
[White "Koehler, Wilhelm"]
[Black "Dolidze, David"]
[Result "0-1"]
[Annotator "NA"]
[ECO "B12"]
[WhiteElo "1829"]
[BlackElo "1720"]
[PlyCount "76"]
[EventDate "2024.07.31"]
[EventCountry "GER"]
[SourceTitle "playchess.com"]
[Source "ChessBase"]
[SourceQuality "1"]
[TimeControl "40/5400+30:900+30"]

1. e4 {[%emt 0:00:06]} c6 {[%emt 0:00:07]} 2. d4 {[%emt 0:00:01]} d5 {[%emt 0:00:08]} 3. e5 {[%emt 0:00:03]} Bf5 {[%emt 0:00:06]} 4. Nd2 {[%emt 0:00:05]} e6 {[%emt 0:01:11]} 5. Nb3 {[%emt 0:00:02]} Nd7 {[%emt 0:00:18]} 6. Nf3 {[%emt 0:00:03]} h6 {[%emt 0:00:14]} 7. Be2 {[%emt 0:00:08]} Ne7 {[%emt 0:00:17]} 8. O-O {[%emt 0:00:10]} Qc7 {[%emt 0:00:26]} 9. a4 {[%emt 0:03:53]} g5 {[%emt 0:00:07]} 10. a5 {[%emt 0:02:11]} Bg7 {[%emt 0:00:07]} 11. Be3 {[%emt 0:04:01]} O-O {[%emt 0:03:33]} 12. h4 {[%emt 0:03:48]} g4 {[%emt 0:00:39]} 13. Nh2 {[%emt 0:00:17]} h5 {[%emt 0:00:16]} 14. g3 {[%emt 0:04:06]} f6 {[%emt 0:15:04]} 15. f4 {[%emt 0:02:44]} Rac8 {[%emt 0:04:21]} 16. Nxg4 {[%emt 0:02:12]} hxg4 {[%emt 0:00:22]} 17. Bxg4 {[%emt 0:00:01]} fxe5 {[%emt 0:03:03]} 18. fxe5 {[%emt 0:04:04]} c5 {[%emt 0:19:41]} 19. c3 {[%emt 0:09:19]} cxd4 {[%emt 0:05:10]} 20. Nxd4 {[%emt 0:00:10]} Qxe5 {[%emt 0:03:08]} 21. Bf4 {[%emt 0:00:23]} Qe4 {[%emt 0:02:47]} 22. Re1 {[%emt 0:02:09]} Bxd4+ {[%emt 0:02:48]} 23. cxd4 {[%emt 0:00:43]} Bxg4 {[%emt 0:04:39]} 24. Qxg4+ {[%emt 0:00:33]} Qg6 {[%emt 0:00:08]} 25. Qxe6+ {[%emt 0:08:44]} Qxe6 {[%emt 0:00:08]} 26. Rxe6 {[%emt 0:00:04]} Nf5 {[%emt 0:01:51]} 27. Be5 {[%emt 0:06:45]} Kf7 {[%emt 0:00:37]} 28. Rd6 {[%emt 0:47:45]} Nxd6 {[%emt 0:00:12]} 29. Bxd6 {[%emt 0:00:00]} Rg8 {[%emt 0:00:19]} 30. Re1 {[%emt 0:00:00]} Rce8 {[%emt 0:01:01]} 31. Rf1+ {[%emt 0:00:00]} Ke6 {[%emt 0:00:11]} 32. Bf4 {[%emt 0:00:00]} Nf6 {[%emt 0:00:08]} 33. Kh2 {[%emt 0:00:00]} Ne4 {[%emt 0:00:14]} 34. Kh3 {[%emt 0:00:00]} Rc8 {[%emt 0:01:01]} 35. g4 {[%emt 0:00:00]} Rc2 {[%emt 0:00:17]} 36. h5 {[%emt 0:00:00]} Rf2 {[%emt 0:00:13]} 37. Rxf2 {[%emt 0:00:00]} Nxf2+ {[%emt 0:00:06]} 38. Kh4 {[%emt 0:00:00]} Rxg4# {[%emt 0:34:32]} 0-1

[Event "DSAM Bad Wildungen 2024"]
[Site "Bad Wildungen"]
[Date "2024.08.02"]
[Round "4.36"]
[White "Merth, Philipp"]
[Black "Reuter, Marek"]
[Result "1/2-1/2"]
[Annotator "NA"]
[ECO "D04"]
[WhiteElo "1803"]
[BlackElo "1761"]
[PlyCount "63"]
[EventDate "2024.07.31"]
[EventCountry "GER"]
[SourceTitle "playchess.com"]
[Source "ChessBase"]
[SourceQuality "1"]
[TimeControl "40/5400+30:900+30"]

1. d4 {[%emt 0:00:01]} Nf6 {[%emt 0:02:33]} 2. Nf3 {[%emt 0:00:12]} d5 {[%emt 0:00:21]} 3. e3 {[%emt 0:00:18]} c5 {[%emt 0:00:24]} 4. b3 {[%emt 0:00:46]} Nc6 {[%emt 0:00:12]} 5. Bb2 {[%emt 0:00:33]} Bf5 {[%emt 0:00:47]} 6. Nh4 {[%emt 0:01:51]} Bg4 {[%emt 0:03:17]} 7. f3 {[%emt 0:01:03]} Bd7 {[%emt 0:00:24]} 8. f4 {[%emt 0:05:33]} Bg4 {[%emt 0:00:51]} 9. Nf3 {[%emt 0:00:24]} cxd4 {[%emt 0:04:09]} 10. exd4 {[%emt 0:02:12]} e6 {[%emt 0:00:51]} 11. Nbd2 {[%emt 0:01:37]} Bd6 {[%emt 0:00:37]} 12. h3 {[%emt 0:02:49]} Bxf3 {[%emt 0:04:07]} 13. Qxf3 {[%emt 0:00:42]} Qc7 {[%emt 0:01:20]} 14. Bb5 {[%emt 0:14:04]} Bxf4 {[%emt 0:02:20]} 15. Rf1 {[%emt 0:02:14]} Bg3+ {[%emt 0:02:38]} 16. Kd1 {[%emt 0:02:58]} O-O-O {[%emt 0:07:20]} 17. a4 {[%emt 0:03:42]} Kb8 {[%emt 0:03:45]} 18. Bxc6 {[%emt 0:04:13]} bxc6 {[%emt 0:00:13]} 19. b4 {[%emt 0:01:30]} Bd6 {[%emt 0:01:08]} 20. b5 {[%emt 0:04:52]} Rd7 {[%emt 0:05:35]} 21. Ke2 {[%emt 0:03:07]} e5 {[%emt 0:08:55]} 22. bxc6 {[%emt 0:03:09]} Qxc6 {[%emt 0:01:40]} 23. dxe5 {[%emt 0:02:25]} Re8 {[%emt 0:00:27]} 24. Qf5 {[%emt 0:01:18]} Rde7 {[%emt 0:01:02]} 25. Nf3 {[%emt 0:01:14]} Nd7 {[%emt 0:00:55]} 26. Kf2 {[%emt 0:02:56]} Nxe5 {[%emt 0:01:14]} 27. Kg1 {[%emt 0:09:46]} Qc5+ {[%emt 0:08:16]} 28. Kh1 {[%emt 0:03:38]} Nc4 {[%emt 0:01:10]} 29. Bd4 {[%emt 0:01:13]} Ne3 {[%emt 0:04:18]} 30. Qxh7 {[%emt 0:03:27]} Qxc2 {[%emt 0:01:49]} 31. Qxc2 {[%emt 0:01:32]} Nxc2 {[%emt 0:00:03]} 32. Rab1+ {[%emt 0:21:11]} 1/2-1/2

[Event "DSAM Bad Wildungen 2024"]
[Site "Bad Wildungen"]
[Date "2024.08.02"]
[Round "4.37"]
[White "Geier, Jakob"]
[Black "Doehn, Friedemann"]
[Result "1-0"]
[Annotator "NA"]
[ECO "C00"]
[WhiteElo "1664"]
[BlackElo "1776"]
[PlyCount "125"]
[EventDate "2024.07.31"]
[EventCountry "GER"]
[SourceTitle "playchess.com"]
[Source "ChessBase"]
[SourceQuality "1"]
[TimeControl "40/5400+30:900+30"]

1. e4 {[%emt 0:04:57]} e6 {[%emt 0:00:07]} 2. b3 {[%emt 0:00:01]} d5 {[%emt 0:00:35]} 3. Bb2 {[%emt 0:00:12]} Nf6 {[%emt 0:03:01]} 4. e5 {[%emt 0:01:46]} Nfd7 {[%emt 0:00:13]} 5. f4 {[%emt 0:00:46]} c5 {[%emt 0:00:37]} 6. Nf3 {[%emt 0:00:14]} Be7 {[%emt 0:01:19]} 7. d4 {[%emt 0:02:41]} cxd4 {[%emt 0:01:48]} 8. Nxd4 {[%emt 0:00:34]} a6 {[%emt 0:05:18]} 9. Nd2 {[%emt 0:05:21]} Nc6 {[%emt 0:00:32]} 10. N2f3 {[%emt 0:02:09]} Nc5 {[%emt 0:08:53]} 11. Nxc6 {[%emt 0:01:15]} bxc6 {[%emt 0:01:32]} 12. Bd3 {[%emt 0:01:21]} Nxd3+ {[%emt 0:00:48]} 13. Qxd3 {[%emt 0:00:07]} a5 {[%emt 0:05:20]} 14. a4 {[%emt 0:02:33]} Qb6 {[%emt 0:04:13]} 15. Nd4 {[%emt 0:07:48]} Ba6 {[%emt 0:00:44]} 16. Qg3 {[%emt 0:00:31]} Bb4+ {[%emt 0:05:39]} 17. Kd1 {[%emt 0:06:40]} O-O {[%emt 0:02:34]} 18. f5 {[%emt 0:09:34]} Rfe8 {[%emt 0:01:22]} 19. f6 {[%emt 0:01:07]} g6 {[%emt 0:01:50]} 20. Qf4 {[%emt 0:04:25]} Bf8 {[%emt 0:06:07]} 21. h4 {[%emt 0:06:51]} Ra7 {[%emt 0:04:34]} 22. Nf3 {[%emt 0:40:37]} Qf2 {[%emt 0:04:07]} 23. Bd4 {[%emt 0:00:00]} Qe2+ {[%emt 0:05:23]} 24. Kc1 {[%emt 0:00:00]} c5 {[%emt 0:02:45]} 25. Bb2 {[%emt 0:00:00]} c4 {[%emt 0:04:06]} 26. Ba3 {[%emt 0:00:00]} cxb3 {[%emt 0:01:27]} 27. Nd4 {[%emt 0:00:00]} Qe4 {[%emt 0:07:04]} 28. Qxe4 {[%emt 0:00:00]} dxe4 {[%emt 0:00:17]} 29. Bxf8 {[%emt 0:00:00]} Rxf8 {[%emt 0:01:56]} 30. Nxb3 {[%emt 0:00:00]} Rc8 {[%emt 0:01:12]} 31. Kb2 {[%emt 0:00:00]} Rb7 {[%emt 0:00:36]} 32. Rhe1 {[%emt 0:00:00]} Rc4 {[%emt 0:06:34]} 33. Rad1 {[%emt 0:00:00]} Rb8 {[%emt 0:02:11]} 34. Rd6 {[%emt 0:00:00]} Bb7 {[%emt 0:01:29]} 35. Red1 {[%emt 0:00:00]} Bd5 {[%emt 0:00:28]} 36. Rd2 {[%emt 0:01:12]} h5 {[%emt 0:02:24]} 37. Ka3 {[%emt 0:01:50]} e3 {[%emt 0:00:40]} 38. Re2 {[%emt 0:01:49]} Rxh4 {[%emt 0:03:27]} 39. Nxa5 {[%emt 0:02:16]} Ra8 {[%emt 0:01:25]} 40. Nc6 {[%emt 0:01:11]} Bxc6 {[%emt 0:00:48]} 41. Rxc6 {[%emt 0:15:08]} Rhxa4+ {[%emt 0:15:18]} 42. Kb3 {[%emt 0:00:25]} Re4 {[%emt 0:02:26]} 43. Rc3 {[%emt 0:00:00]} Rb8+ {[%emt 0:00:00]} 44. Ka2 {[%emt 0:00:00]} Rxe5 {[%emt 0:00:00]} 45. Rexe3 {[%emt 0:00:00]} Rf5 {[%emt 0:00:00]} 46. Rf3 {[%emt 0:00:00]} Rd5 {[%emt 0:00:00]} 47. Rfd3 {[%emt 0:00:00]} Rf5 {[%emt 0:00:00]} 48. Rf3 {[%emt 0:00:00]} Rg5 {[%emt 0:00:00]} 49. Rg3 {[%emt 0:00:00]} Ra5+ {[%emt 0:00:00]} 50. Ra3 {[%emt 0:00:00]} Rba8 {[%emt 0:00:23]} 51. c4 {[%emt 0:00:00]} Kf8 {[%emt 0:00:29]} 52. Rxa5 {[%emt 0:00:00]} Rxa5+ {[%emt 0:00:05]} 53. Kb3 {[%emt 0:00:00]} Ke8 {[%emt 0:00:21]} 54. Kb4 {[%emt 0:00:00]} Ra7 {[%emt 0:01:14]} 55. Kb5 {[%emt 0:00:00]} Kd8 {[%emt 0:01:25]} 56. Kb6 {[%emt 0:00:00]} Rd7 {[%emt 0:00:21]} 57. c5 {[%emt 0:00:00]} Rd1 {[%emt 0:01:21]} 58. Ra3 {[%emt 0:00:00]} Rb1+ {[%emt 0:00:47]} 59. Kc6 {[%emt 0:00:12]} Rb8 {[%emt 0:00:37]} 60. Ra7 {[%emt 0:00:22]} Rc8+ {[%emt 0:00:18]} 61. Kd6 {[%emt 0:00:08]} Ke8 {[%emt 0:00:37]} 62. Re7+ {[%emt 0:01:05]} Kf8 {[%emt 0:00:37]} 63. c6 {[%emt 0:00:31]} 1-0

[Event "DSAM Bad Wildungen 2024"]
[Site "Bad Wildungen"]
[Date "2024.08.02"]
[Round "4.38"]
[White "Klar, Ennio"]
[Black "Sniegowski, Richard"]
[Result "0-1"]
[Annotator "NA"]
[ECO "C42"]
[WhiteElo "1781"]
[BlackElo "1695"]
[PlyCount "104"]
[EventDate "2024.07.31"]
[EventCountry "GER"]
[SourceTitle "playchess.com"]
[Source "ChessBase"]
[SourceQuality "1"]
[TimeControl "40/5400+30:900+30"]

1. e4 {[%emt 0:00:01]} e5 {[%emt 0:00:08]} 2. Nf3 {[%emt 0:00:02]} Nf6 {[%emt 0:00:05]} 3. Nc3 {[%emt 0:00:09]} Bb4 {[%emt 0:00:06]} 4. d3 {[%emt 0:01:08]} Nc6 {[%emt 0:00:06]} 5. g3 {[%emt 0:00:16]} d5 {[%emt 0:00:52]} 6. a3 {[%emt 0:01:11]} Be7 {[%emt 0:00:36]} 7. Bg2 {[%emt 0:01:08]} dxe4 {[%emt 0:02:20]} 8. dxe4 {[%emt 0:02:16]} Qxd1+ {[%emt 0:00:08]} 9. Nxd1 {[%emt 0:00:11]} Bg4 {[%emt 0:04:42]} 10. O-O {[%emt 0:05:59]} Bxf3 {[%emt 0:06:56]} 11. Bxf3 {[%emt 0:01:52]} Nd4 {[%emt 0:00:14]} 12. Bg2 {[%emt 0:01:27]} Nxc2 {[%emt 0:00:05]} 13. Rb1 {[%emt 0:00:27]} O-O {[%emt 0:04:28]} 14. Nc3 {[%emt 0:08:29]} c6 {[%emt 0:04:18]} 15. Bg5 {[%emt 0:02:04]} h6 {[%emt 0:00:37]} 16. Rbc1 {[%emt 0:04:03]} Nd4 {[%emt 0:01:20]} 17. Be3 {[%emt 0:01:10]} Rad8 {[%emt 0:01:06]} 18. Rcd1 {[%emt 0:03:50]} Bc5 {[%emt 0:07:20]} 19. Rfe1 {[%emt 0:08:36]} Ne6 {[%emt 0:12:29]} 20. Bxc5 {[%emt 0:05:22]} Nxc5 {[%emt 0:00:10]} 21. b4 {[%emt 0:05:44]} Ne6 {[%emt 0:00:11]} 22. Ne2 {[%emt 0:03:47]} Nd7 {[%emt 0:13:46]} 23. f4 {[%emt 0:02:59]} f6 {[%emt 0:01:42]} 24. Bh3 {[%emt 0:01:08]} Kf7 {[%emt 0:00:05]} 25. Rd6 {[%emt 0:00:31]} Rfe8 {[%emt 0:00:43]} 26. Red1 {[%emt 0:10:42]} Ndf8 {[%emt 0:00:23]} 27. Bg4 {[%emt 0:01:17]} Ke7 {[%emt 0:04:10]} 28. Rxd8 {[%emt 0:05:42]} Rxd8 {[%emt 0:00:27]} 29. Rxd8 {[%emt 0:01:27]} Nxd8 {[%emt 0:01:42]} 30. f5 {[%emt 0:00:51]} Nf7 {[%emt 0:00:26]} 31. Kf2 {[%emt 0:01:03]} Nd6 {[%emt 0:00:40]} 32. Nc3 {[%emt 0:00:14]} Nd7 {[%emt 0:00:38]} 33. Be2 {[%emt 0:00:38]} a6 {[%emt 0:06:52]} 34. a4 {[%emt 0:04:51]} b5 {[%emt 0:00:46]} 35. a5 {[%emt 0:00:18]} Ne8 {[%emt 0:00:51]} 36. Ke3 {[%emt 0:02:16]} Nc7 {[%emt 0:00:08]} 37. Kd2 {[%emt 0:01:22]} Kd6 {[%emt 0:00:14]} 38. Kc2 {[%emt 0:03:33]} c5 {[%emt 0:00:06]} 39. Kb3 {[%emt 0:00:19]} Nb8 {[%emt 0:02:16]} 40. Na2 {[%emt 0:03:32]} Nc6 {[%emt 0:00:22]} 41. Bf1 {[%emt 0:16:41]} cxb4 {[%emt 0:15:32]} 42. Nxb4 {[%emt 0:00:22]} Nxa5+ {[%emt 0:00:04]} 43. Kc3 {[%emt 0:00:20]} Nc6 {[%emt 0:00:59]} 44. Bd3 {[%emt 0:03:19]} Nxb4 {[%emt 0:02:26]} 45. Kxb4 {[%emt 0:00:07]} Kc6 {[%emt 0:00:07]} 46. Ka5 {[%emt 0:00:13]} Kb7 {[%emt 0:00:28]} 47. Bb1 {[%emt 0:01:42]} Ne8 {[%emt 0:01:59]} 48. Ba2 {[%emt 0:01:33]} Nd6 {[%emt 0:00:06]} 49. Bd5+ {[%emt 0:00:52]} Ka7 {[%emt 0:00:05]} 50. Kb4 {[%emt 0:00:06]} Kb6 {[%emt 0:00:08]} 51. Be6 {[%emt 0:00:43]} a5+ {[%emt 0:00:42]} 52. Kb3 {[%emt 0:00:09]} Nxe4 {[%emt 0:00:43]} 0-1

[Event "DSAM Bad Wildungen 2024"]
[Site "Bad Wildungen"]
[Date "2024.08.02"]
[Round "4.40"]
[White "Klatt, Rico"]
[Black "Hefner, Simon"]
[Result "1/2-1/2"]
[Annotator "NA"]
[ECO "D78"]
[WhiteElo "1690"]
[BlackElo "1678"]
[PlyCount "123"]
[EventDate "2024.07.31"]
[EventCountry "GER"]
[SourceTitle "playchess.com"]
[Source "ChessBase"]
[SourceQuality "1"]
[TimeControl "40/5400+30:900+30"]

1. d4 {[%emt 0:00:03]} Nf6 {[%emt 0:00:15]} 2. c4 {[%emt 0:00:03]} g6 {[%emt 0:00:08]} 3. g3 {[%emt 0:00:07]} c6 {[%emt 0:00:57]} 4. Bg2 {[%emt 0:00:30]} d5 {[%emt 0:00:18]} 5. Nf3 {[%emt 0:00:34]} Bg7 {[%emt 0:04:26]} 6. O-O {[%emt 0:01:09]} O-O {[%emt 0:00:19]} 7. b3 {[%emt 0:04:09]} Bf5 {[%emt 0:07:52]} 8. Bb2 {[%emt 0:10:47]} Nbd7 {[%emt 0:10:49]} 9. Nc3 {[%emt 0:06:39]} Ne4 {[%emt 0:01:56]} 10. Nh4 {[%emt 0:06:51]} Nxc3 {[%emt 0:01:38]} 11. Bxc3 {[%emt 0:01:52]} Be6 {[%emt 0:00:51]} 12. cxd5 {[%emt 0:04:47]} cxd5 {[%emt 0:01:15]} 13. Rc1 {[%emt 0:03:46]} Nf6 {[%emt 0:01:34]} 14. e3 {[%emt 0:08:41]} Qd7 {[%emt 0:10:22]} 15. Bb4 {[%emt 0:05:22]} Rac8 {[%emt 0:08:41]} 16. Qd2 {[%emt 0:05:35]} Rc6 {[%emt 0:01:12]} 17. Rxc6 {[%emt 0:00:19]} bxc6 {[%emt 0:00:23]} 18. Rc1 {[%emt 0:01:04]} Rc8 {[%emt 0:03:55]} 19. Qd3 {[%emt 0:06:13]} g5 {[%emt 0:07:53]} 20. Nf3 {[%emt 0:00:34]} Bf5 {[%emt 0:00:15]} 21. Qa6 {[%emt 0:01:05]} Ne4 {[%emt 0:05:37]} 22. Nd2 {[%emt 0:05:11]} Nxd2 {[%emt 0:02:46]} 23. Bxd2 {[%emt 0:00:40]} e6 {[%emt 0:00:25]} 24. b4 {[%emt 0:06:51]} Rc7 {[%emt 0:05:03]} 25. a3 {[%emt 0:07:17]} h6 {[%emt 0:02:08]} 26. h3 {[%emt 0:01:00]} e5 {[%emt 0:03:19]} 27. g4 {[%emt 0:00:36]} Be6 {[%emt 0:02:52]} 28. Bc3 {[%emt 0:00:49]} exd4 {[%emt 0:02:11]} 29. Bxd4 {[%emt 0:00:30]} Bxd4 {[%emt 0:01:04]} 30. exd4 {[%emt 0:00:04]} Qd6 {[%emt 0:01:03]} 31. b5 {[%emt 0:03:48]} Bd7 {[%emt 0:03:01]} 32. b6 {[%emt 0:00:04]} axb6 {[%emt 0:00:54]} 33. Qxb6 {[%emt 0:00:05]} Qxa3 {[%emt 0:01:18]} 34. Qxc7 {[%emt 0:07:01]} Qxc1+ {[%emt 0:00:09]} 35. Kh2 {[%emt 0:00:11]} Be6 {[%emt 0:00:28]} 36. Qe5 {[%emt 0:01:30]} Kh7 {[%emt 0:03:11]} 37. Kg3 {[%emt 0:02:07]} Qa3+ {[%emt 0:01:49]} 38. Kh2 {[%emt 0:00:27]} Qc3 {[%emt 0:00:31]} 39. Kg1 {[%emt 0:00:55]} c5 {[%emt 0:00:29]} 40. Bxd5 {[%emt 0:00:17]} Qxd4 {[%emt 0:04:19]} 41. Qxd4 {[%emt 0:15:15]} cxd4 {[%emt 0:15:07]} 42. Be4+ {[%emt 0:00:01]} Kg7 {[%emt 0:00:24]} 43. Bd3 {[%emt 0:00:21]} Kf6 {[%emt 0:00:23]} 44. Kg2 {[%emt 0:00:00]} Ke5 {[%emt 0:00:00]} 45. Kg3 {[%emt 0:00:00]} f5 {[%emt 0:00:00]} 46. f3 {[%emt 0:00:00]} f4+ {[%emt 0:00:00]} 47. Kf2 {[%emt 0:00:00]} Kd5 {[%emt 0:00:00]} 48. Ke2 {[%emt 0:00:00]} Kc5 {[%emt 0:00:00]} 49. Kd2 {[%emt 0:00:00]} Bc4 {[%emt 0:00:00]} 50. Bc2 {[%emt 0:02:08]} Bf1 {[%emt 0:00:00]} 51. Be4 {[%emt 0:00:23]} Kc4 {[%emt 0:00:22]} 52. Bc6 {[%emt 0:01:08]} d3 {[%emt 0:04:24]} 53. Bb7 {[%emt 0:00:23]} Kd4 {[%emt 0:00:18]} 54. Ba6 {[%emt 0:01:43]} Be2 {[%emt 0:00:49]} 55. Bb7 {[%emt 0:00:04]} Bf1 {[%emt 0:02:24]} 56. Bc6 {[%emt 0:00:56]} Bxh3 {[%emt 0:00:19]} 57. Bb7 {[%emt 0:01:12]} Bg2 {[%emt 0:01:54]} 58. Bc6 {[%emt 0:00:06]} Kc4 {[%emt 0:00:00]} 59. Bb7 {[%emt 0:00:37]} Bf1 {[%emt 0:00:00]} 60. Ba6+ {[%emt 0:00:15]} Kd4 {[%emt 0:00:00]} 61. Bb7 {[%emt 0:00:09]} Be2 {[%emt 0:00:10]} 62. Bc6 {[%emt 0:02:16]} 1/2-1/2

[Event "DSAM Bad Wildungen 2024"]
[Site "Bad Wildungen"]
[Date "2024.08.02"]
[Round "4.41"]
[White "Scholz, Paul"]
[Black "Schuetz, Markus"]
[Result "1/2-1/2"]
[Annotator "NA"]
[ECO "A12"]
[WhiteElo "1592"]
[BlackElo "1512"]
[PlyCount "76"]
[EventDate "2024.07.31"]
[EventCountry "GER"]
[SourceTitle "playchess.com"]
[Source "ChessBase"]
[SourceQuality "1"]
[TimeControl "40/5400+30:900+30"]

1. Nf3 {[%emt 0:00:04]} c6 {[%emt 0:00:14]} 2. c4 {[%emt 0:00:33]} d5 {[%emt 0:00:11]} 3. e3 {[%emt 0:00:06]} Nf6 {[%emt 0:01:39]} 4. b3 {[%emt 0:00:41]} Bg4 {[%emt 0:00:49]} 5. Bb2 {[%emt 0:00:58]} e6 {[%emt 0:02:22]} 6. cxd5 {[%emt 0:02:11]} cxd5 {[%emt 0:01:06]} 7. Be2 {[%emt 0:00:12]} Bd6 {[%emt 0:02:07]} 8. O-O {[%emt 0:02:17]} Nbd7 {[%emt 0:02:11]} 9. d4 {[%emt 0:00:26]} O-O {[%emt 0:08:21]} 10. Nbd2 {[%emt 0:00:17]} Rc8 {[%emt 0:05:08]} 11. Ne1 {[%emt 0:02:40]} Bxe2 {[%emt 0:07:48]} 12. Qxe2 {[%emt 0:00:07]} Qe7 {[%emt 0:04:46]} 13. Ndf3 {[%emt 0:01:41]} Rc7 {[%emt 0:09:27]} 14. Nd3 {[%emt 0:00:23]} Rfc8 {[%emt 0:02:42]} 15. Rfc1 {[%emt 0:00:51]} Rxc1+ {[%emt 0:05:40]} 16. Rxc1 {[%emt 0:00:10]} Rxc1+ {[%emt 0:00:07]} 17. Nxc1 {[%emt 0:00:05]} Ba3 {[%emt 0:00:14]} 18. Nd3 {[%emt 0:01:44]} Ne4 {[%emt 0:04:43]} 19. Nfe5 {[%emt 0:04:01]} Bxb2 {[%emt 0:00:22]} 20. Qxb2 {[%emt 0:06:44]} Nxe5 {[%emt 0:05:29]} 21. Nxe5 {[%emt 0:00:12]} Qb4 {[%emt 0:06:19]} 22. Nd3 {[%emt 0:01:44]} Qb5 {[%emt 0:06:08]} 23. Qc2 {[%emt 0:01:46]} h6 {[%emt 0:02:02]} 24. a4 {[%emt 0:03:52]} Qa6 {[%emt 0:02:05]} 25. f3 {[%emt 0:02:21]} Nf6 {[%emt 0:01:55]} 26. Kf2 {[%emt 0:04:37]} b6 {[%emt 0:02:07]} 27. Ne5 {[%emt 0:02:47]} Qb7 {[%emt 0:00:56]} 28. Qc6 {[%emt 0:01:26]} Qxc6 {[%emt 0:06:41]} 29. Nxc6 {[%emt 0:00:26]} a6 {[%emt 0:00:04]} 30. Ne7+ {[%emt 0:01:48]} Kf8 {[%emt 0:00:31]} 31. Nc8 {[%emt 0:00:09]} Nd7 {[%emt 0:00:23]} 32. Ke2 {[%emt 0:03:57]} Ke8 {[%emt 0:00:23]} 33. a5 {[%emt 0:02:42]} b5 {[%emt 0:01:25]} 34. Nd6+ {[%emt 0:01:27]} Ke7 {[%emt 0:00:07]} 35. Nb7 {[%emt 0:00:09]} Nb8 {[%emt 0:00:59]} 36. Nc5 {[%emt 0:00:21]} Kd6 {[%emt 0:00:23]} 37. Nxa6 {[%emt 0:01:24]} Nxa6 {[%emt 0:00:19]} 38. e4 {[%emt 0:01:49]} Nb4 {[%emt 0:03:05]} 1/2-1/2